[Event "*** Titled Tuesday Blitz"]
[Site "Chess.com"]
[Date "2021.03.02"]
[Round "7"]
[White "Shuvalov"]
[Black "kingofthenil"]
[Result "1-0"]
[WhiteElo "2554"]
[BlackElo "2808"]
[TimeControl "180+1"]
[EndTime "11:19:05 PST"]
[Termination "Shuvalov won by resignation"]

1. Nf3 {[%clk 0:03:00.9]} 1... Nf6 {[%clk 0:02:41.1]} 2. c4 {[%clk 0:03:00.6]}
2... e6 {[%clk 0:02:35.9]} 3. g3 {[%clk 0:03:00.4]} 3... d5 {[%clk 0:02:36.2]}
4. Bg2 {[%clk 0:03:00.7]} 4... Be7 {[%clk 0:02:36.7]} 5. O-O {[%clk 0:03:00.3]}
5... O-O {[%clk 0:02:37.6]} 6. b3 {[%clk 0:03:00.4]} 6... c5 {[%clk 0:02:37.6]}
7. Bb2 {[%clk 0:03:00.4]} 7... d4 {[%clk 0:02:38]} 8. e3 {[%clk 0:03:00.5]} 8...
Nc6 {[%clk 0:02:38.3]} 9. exd4 {[%clk 0:03:00.7]} 9... cxd4 {[%clk 0:02:39.2]}
10. Re1 {[%clk 0:03:01]} 10... Ng4 {[%clk 0:02:39.2]} 11. d3 {[%clk 0:02:36.9]}
11... f6 {[%clk 0:02:35.5]} 12. Ba3 {[%clk 0:02:27.5]} 12... e5 {[%clk
0:02:29.3]} 13. Bxe7 {[%clk 0:02:17.6]} 13... Qxe7 {[%clk 0:02:30.2]} 14. a3
{[%clk 0:02:16.1]} 14... a5 {[%clk 0:02:29.6]} 15. Nbd2 {[%clk 0:02:15.2]} 15...
Be6 {[%clk 0:02:23.4]} 16. Nh4 {[%clk 0:01:55.7]} 16... Nh6 {[%clk 0:02:01.4]}
17. f4 {[%clk 0:01:51.8]} 17... Ng4 {[%clk 0:01:56.5]} 18. Nf1 {[%clk
0:01:32.2]} 18... Qd7 {[%clk 0:01:47.8]} 19. Rb1 {[%clk 0:00:49]} 19... g5
{[%clk 0:01:30.6]} 20. fxg5 {[%clk 0:00:35.1]} 20... fxg5 {[%clk 0:01:31.5]} 21.
Nf3 {[%clk 0:00:35.4]} 21... Qg7 {[%clk 0:00:57.3]} 22. b4 {[%clk 0:00:31.9]}
22... axb4 {[%clk 0:00:57.1]} 23. axb4 {[%clk 0:00:32.8]} 23... Ra2 {[%clk
0:00:52.2]} 24. Re2 {[%clk 0:00:30]} 24... Rxe2 {[%clk 0:00:45.7]} 25. Qxe2
{[%clk 0:00:30.9]} 25... Qf6 {[%clk 0:00:43.5]} 26. b5 {[%clk 0:00:28.4]} 26...
Ne7 {[%clk 0:00:43.5]} 27. h3 {[%clk 0:00:26.6]} 27... Nh6 {[%clk 0:00:37.5]}
28. Qxe5 {[%clk 0:00:25.7]} 28... Qxe5 {[%clk 0:00:30.6]} 29. Nxe5 {[%clk
0:00:26.6]} 29... b6 {[%clk 0:00:31.5]} 30. Nf3 {[%clk 0:00:23.5]} 30... Bxh3
{[%clk 0:00:26.2]} 31. Nxd4 {[%clk 0:00:21.1]} 31... Bxg2 {[%clk 0:00:23.2]} 32.
Kxg2 {[%clk 0:00:22]} 32... Ng4 {[%clk 0:00:23.7]} 33. Ne6 {[%clk 0:00:18.2]}
33... Rf2+ {[%clk 0:00:23]} 34. Kg1 {[%clk 0:00:18.3]} 34... Nf5 {[%clk
0:00:15.1]} 35. c5 {[%clk 0:00:17.4]} 35... Re2 {[%clk 0:00:15.4]} 36. Nxg5
{[%clk 0:00:15.1]} 36... Nd4 {[%clk 0:00:10]} 37. cxb6 {[%clk 0:00:13.4]} 37...
Ra2 {[%clk 0:00:04.6]} 38. b7 {[%clk 0:00:13.3]} 38... Ne2+ {[%clk 0:00:04.9]}
39. Kg2 {[%clk 0:00:12.4]} 39... Nd4+ {[%clk 0:00:01.7]} 40. Kh3 {[%clk
0:00:12.1]} 40... h5 {[%clk 0:00:01.6]} 41. b8=Q+ {[%clk 0:00:11.6]} 41... Kg7
{[%clk 0:00:02.4]} 42. Qc7+ {[%clk 0:00:11.2]} 42... Kg6 {[%clk 0:00:03.3]} 43.
Qf7+ {[%clk 0:00:10.2]} 43... Kxg5 {[%clk 0:00:03.7]} 44. Qxa2 {[%clk
0:00:10.9]} 44... Nf3 {[%clk 0:00:02.7]} 45. Qg8+ {[%clk 0:00:09.7]} 45... Kh6
{[%clk 0:00:02.5]} 46. Qxg4 {[%clk 0:00:09.4]} 46... Ng1+ {[%clk 0:00:03.2]} 47.
Kg2 {[%clk 0:00:09.4]} 1-0

[Event "*** Titled Tuesday Blitz"]
[Site "Chess.com"]
[Date "2021.03.02"]
[Round "7"]
[White "VFernandezB"]
[Black "GianmarcoVaR"]
[Result "0-1"]
[WhiteElo "2486"]
[BlackElo "2635"]
[TimeControl "180+1"]
[EndTime "11:19:07 PST"]
[Termination "GianmarcoVaR won by resignation"]

1. e4 {[%clk 0:03:00.9]} 1... c5 {[%clk 0:02:54.9]} 2. Nf3 {[%clk 0:03:00.1]}
2... d6 {[%clk 0:02:54.9]} 3. d4 {[%clk 0:03:00.7]} 3... cxd4 {[%clk 0:02:55.1]}
4. Nxd4 {[%clk 0:03:01.6]} 4... Nf6 {[%clk 0:02:55.1]} 5. Nc3 {[%clk 0:03:02.2]}
5... a6 {[%clk 0:02:55.1]} 6. Bg5 {[%clk 0:03:02.8]} 6... e6 {[%clk 0:02:54.1]}
7. f4 {[%clk 0:03:03.1]} 7... h6 {[%clk 0:02:53.1]} 8. Bh4 {[%clk 0:03:02.2]}
8... Qb6 {[%clk 0:02:53.3]} 9. Nb3 {[%clk 0:02:59.2]} 9... Qe3+ {[%clk
0:02:50.9]} 10. Qe2 {[%clk 0:02:59.4]} 10... Qxf4 {[%clk 0:02:47.2]} 11. Bg3
{[%clk 0:02:50.2]} 11... Qg5 {[%clk 0:02:47.3]} 12. Rd1 {[%clk 0:02:40.1]} 12...
e5 {[%clk 0:02:38.5]} 13. Qf2 {[%clk 0:02:25]} 13... Bg4 {[%clk 0:02:37.2]} 14.
Be2 {[%clk 0:02:22.7]} 14... Bxe2 {[%clk 0:02:35]} 15. Qxe2 {[%clk 0:02:22.6]}
15... Nbd7 {[%clk 0:02:34.7]} 16. O-O {[%clk 0:02:22.8]} 16... Be7 {[%clk
0:02:34.3]} 17. Rf5 {[%clk 0:02:22.9]} 17... Qg6 {[%clk 0:02:32.7]} 18. Na5
{[%clk 0:02:12.9]} 18... Rb8 {[%clk 0:02:29.1]} 19. Nc4 {[%clk 0:02:12.6]} 19...
O-O {[%clk 0:02:03.5]} 20. Nxd6 {[%clk 0:02:09.8]} 20... Rfd8 {[%clk 0:01:54.5]}
21. Nc4 {[%clk 0:01:57.6]} 21... Bc5+ {[%clk 0:01:53.4]} 22. Kh1 {[%clk
0:01:54.8]} 22... Bd4 {[%clk 0:01:53.7]} 23. Nxe5 {[%clk 0:01:40.4]} 23... Nxe5
{[%clk 0:01:32.3]} 24. Bxe5 {[%clk 0:01:40.3]} 24... Bxe5 {[%clk 0:01:32.5]} 25.
Rxe5 {[%clk 0:01:38.6]} 25... Rxd1+ {[%clk 0:01:31.7]} 26. Qxd1 {[%clk
0:01:36.9]} 26... Ng4 {[%clk 0:01:31.7]} 27. Rf5 {[%clk 0:01:34.9]} 27... Qxf5
{[%clk 0:01:31.7]} 28. exf5 {[%clk 0:01:33.3]} 28... Nf2+ {[%clk 0:01:32.1]} 29.
Kg1 {[%clk 0:01:33.1]} 29... Nxd1 {[%clk 0:01:32.7]} 30. Nxd1 {[%clk 0:01:32.5]}
30... Rd8 {[%clk 0:01:33.3]} 31. Ne3 {[%clk 0:01:32.6]} 31... Kf8 {[%clk
0:01:27.4]} 32. Kf2 {[%clk 0:01:32.1]} 32... Ke7 {[%clk 0:01:26.3]} 33. Kf3
{[%clk 0:01:32.2]} 33... Rd2 {[%clk 0:01:25.6]} 34. h4 {[%clk 0:01:28.8]} 34...
h5 {[%clk 0:01:24]} 35. Ke4 {[%clk 0:01:11.1]} 35... b5 {[%clk 0:01:17.8]} 36.
a3 {[%clk 0:00:55.5]} 36... Re2 {[%clk 0:01:11.2]} 37. Kf3 {[%clk 0:00:53.9]}
37... Re1 {[%clk 0:01:09.8]} 38. Kf4 {[%clk 0:00:52.8]} 38... Rb1 {[%clk
0:01:03.4]} 39. b4 {[%clk 0:00:34.8]} 39... Ra1 {[%clk 0:00:58.7]} 40. c4 {[%clk
0:00:33.4]} 40... Rxa3 {[%clk 0:00:57.1]} 41. c5 {[%clk 0:00:31.8]} 41... Kd7
{[%clk 0:00:50.1]} 42. Nd5 {[%clk 0:00:26.3]} 42... Rd3 {[%clk 0:00:47.7]} 43.
Ke4 {[%clk 0:00:23.8]} 43... Rg3 {[%clk 0:00:46.1]} 44. Nf4 {[%clk 0:00:23.4]}
44... Rg4 {[%clk 0:00:45.5]} 45. Ke5 {[%clk 0:00:23.6]} 45... Rxh4 {[%clk
0:00:43.6]} 46. g3 {[%clk 0:00:20.2]} 46... Rh2 {[%clk 0:00:33.2]} 47. f6 {[%clk
0:00:20.1]} 47... g6 {[%clk 0:00:28.4]} 48. Kd5 {[%clk 0:00:15.5]} 48... Rb2
{[%clk 0:00:21.9]} 49. c6+ {[%clk 0:00:14.2]} 49... Kc7 {[%clk 0:00:21.8]} 50.
Nd3 {[%clk 0:00:12.2]} 50... Rd2 {[%clk 0:00:21.9]} 51. Ke4 {[%clk 0:00:10.6]}
51... Rxd3 {[%clk 0:00:21.4]} 52. Kxd3 {[%clk 0:00:11]} 52... g5 {[%clk
0:00:20.9]} 53. Ke4 {[%clk 0:00:11.9]} 53... h4 {[%clk 0:00:21.2]} 54. gxh4
{[%clk 0:00:11.4]} 54... gxh4 {[%clk 0:00:22.1]} 55. Kf4 {[%clk 0:00:12]} 55...
a5 {[%clk 0:00:20.7]} 56. Kg4 {[%clk 0:00:12.9]} 56... axb4 {[%clk 0:00:20.4]}
0-1

[Event "*** Titled Tuesday Blitz"]
[Site "Chess.com"]
[Date "2021.03.02"]
[Round "7"]
[White "indfraeng"]
[Black "wadsy27"]
[Result "0-1"]
[WhiteElo "2395"]
[BlackElo "2536"]
[TimeControl "180+1"]
[EndTime "11:19:07 PST"]
[Termination "wadsy27 won by checkmate"]

1. d4 {[%clk 0:02:59.8]} 1... Nf6 {[%clk 0:02:58.4]} 2. c4 {[%clk 0:03:00.7]}
2... c5 {[%clk 0:02:58.1]} 3. d5 {[%clk 0:03:00.5]} 3... e6 {[%clk 0:02:58.4]}
4. g3 {[%clk 0:02:57.5]} 4... exd5 {[%clk 0:02:58.8]} 5. cxd5 {[%clk 0:02:58.4]}
5... d6 {[%clk 0:02:59.2]} 6. Bg2 {[%clk 0:02:58.1]} 6... g6 {[%clk 0:02:59.8]}
7. Nf3 {[%clk 0:02:58.8]} 7... Bg7 {[%clk 0:03:00.5]} 8. O-O {[%clk 0:02:59.5]}
8... O-O {[%clk 0:03:01.2]} 9. Nc3 {[%clk 0:03:00.3]} 9... a6 {[%clk 0:03:01.9]}
10. a4 {[%clk 0:02:59.2]} 10... Nbd7 {[%clk 0:03:02.6]} 11. h3 {[%clk
0:02:59.8]} 11... Re8 {[%clk 0:03:02.1]} 12. Nd2 {[%clk 0:03:00.2]} 12... Nh5
{[%clk 0:03:01.2]} 13. Nc4 {[%clk 0:02:58.4]} 13... Ne5 {[%clk 0:02:58.4]} 14.
Na3 {[%clk 0:02:54.5]} 14... Bd7 {[%clk 0:02:55.6]} 15. a5 {[%clk 0:02:54.2]}
15... Rb8 {[%clk 0:02:42.7]} 16. e4 {[%clk 0:02:52.1]} 16... b5 {[%clk
0:02:42.7]} 17. axb6 {[%clk 0:02:51.6]} 17... Bb5 {[%clk 0:02:43.1]} 18. g4
{[%clk 0:02:49.7]} 18... Bxf1 {[%clk 0:02:37.8]} 19. Kxf1 {[%clk 0:02:50.6]}
19... Nf6 {[%clk 0:02:30.5]} 20. f4 {[%clk 0:02:50.6]} 20... Nfd7 {[%clk
0:02:29.4]} 21. fxe5 {[%clk 0:02:47.7]} 21... Nxe5 {[%clk 0:02:25.7]} 22. Qe2
{[%clk 0:02:27.7]} 22... Qxb6 {[%clk 0:02:22.5]} 23. Nc4 {[%clk 0:02:25.7]}
23... Nxc4 {[%clk 0:02:19.6]} 24. Qxc4 {[%clk 0:02:26.6]} 24... Ra8 {[%clk
0:02:09.4]} 25. Na4 {[%clk 0:01:59.3]} 25... Qb5 {[%clk 0:02:04.5]} 26. Qe2
{[%clk 0:01:58.8]} 26... Qb4 {[%clk 0:01:48.5]} 27. Bd2 {[%clk 0:01:53.2]} 27...
Qb3 {[%clk 0:01:24.9]} 28. Bc3 {[%clk 0:01:48.1]} 28... Rab8 {[%clk 0:01:08.7]}
29. Bxg7 {[%clk 0:01:43.2]} 29... Kxg7 {[%clk 0:01:08]} 30. Ra3 {[%clk
0:01:38.6]} 30... Qb4 {[%clk 0:00:59]} 31. Qd3 {[%clk 0:01:18.4]} 31... Re5
{[%clk 0:00:47.7]} 32. Bf3 {[%clk 0:01:10.3]} 32... c4 {[%clk 0:00:39.6]} 33.
Qc2 {[%clk 0:00:52.8]} 33... a5 {[%clk 0:00:16.7]} 34. Rc3 {[%clk 0:00:52]}
34... Rc8 {[%clk 0:00:13.9]} 35. Be2 {[%clk 0:00:46.8]} 35... f5 {[%clk
0:00:09.4]} 36. gxf5 {[%clk 0:00:46.4]} 36... gxf5 {[%clk 0:00:09.7]} 37. exf5
{[%clk 0:00:37.4]} 37... Rf8 {[%clk 0:00:08.9]} 38. Bg4 {[%clk 0:00:35.6]} 38...
h5 {[%clk 0:00:08.4]} 39. Qd1 {[%clk 0:00:16.3]} 39... hxg4 {[%clk 0:00:07.8]}
40. Qxg4+ {[%clk 0:00:17.2]} 40... Kf7 {[%clk 0:00:05.8]} 41. Qg6+ {[%clk
0:00:14.2]} 41... Ke7 {[%clk 0:00:06]} 42. Qg5+ {[%clk 0:00:14.7]} 42... Rf6
{[%clk 0:00:05.7]} 43. Qg7+ {[%clk 0:00:15.3]} 43... Rf7 {[%clk 0:00:05.9]} 44.
Qg5+ {[%clk 0:00:15.4]} 44... Kd7 {[%clk 0:00:06.2]} 45. Rf3 {[%clk 0:00:13.9]}
45... Qxa4 {[%clk 0:00:06.3]} 46. Qg6 {[%clk 0:00:14.2]} 46... Qd1+ {[%clk
0:00:06.4]} 47. Kg2 {[%clk 0:00:14.8]} 47... Re2+ {[%clk 0:00:06.6]} 48. Kg3
{[%clk 0:00:15.1]} 48... Qg1+ {[%clk 0:00:06.8]} 49. Kf4 {[%clk 0:00:15.7]}
49... Qxg6 {[%clk 0:00:06.8]} 50. Rg3 {[%clk 0:00:09.5]} 50... Rxf5# {[%clk
0:00:06.7]} 0-1

[Event "*** Titled Tuesday Blitz"]
[Site "Chess.com"]
[Date "2021.03.02"]
[Round "7"]
[White "Matensien"]
[Black "andrzej"]
[Result "0-1"]
[WhiteElo "2483"]
[BlackElo "2368"]
[TimeControl "180+1"]
[EndTime "11:19:07 PST"]
[Termination "andrzej won by checkmate"]

1. d4 {[%clk 0:03:00.9]} 1... Nf6 {[%clk 0:02:59.8]} 2. c4 {[%clk 0:03:00.5]}
2... c5 {[%clk 0:03:00.2]} 3. Nf3 {[%clk 0:02:59.9]} 3... cxd4 {[%clk
0:02:59.7]} 4. Nxd4 {[%clk 0:03:00.8]} 4... Nc6 {[%clk 0:02:58.4]} 5. Nc3 {[%clk
0:03:01.2]} 5... g6 {[%clk 0:02:58.3]} 6. g3 {[%clk 0:03:01.6]} 6... Bg7 {[%clk
0:02:58.9]} 7. Bg2 {[%clk 0:03:02.3]} 7... O-O {[%clk 0:02:59.6]} 8. O-O {[%clk
0:03:03]} 8... Qa5 {[%clk 0:02:58.2]} 9. Nb3 {[%clk 0:03:01.9]} 9... Qh5 {[%clk
0:02:58.4]} 10. e4 {[%clk 0:03:02.1]} 10... d6 {[%clk 0:02:58.5]} 11. Qxh5
{[%clk 0:03:01.5]} 11... Nxh5 {[%clk 0:02:59.4]} 12. Nd5 {[%clk 0:03:01.1]}
12... Bd7 {[%clk 0:02:45.1]} 13. c5 {[%clk 0:02:59.4]} 13... dxc5 {[%clk
0:02:45]} 14. Nxc5 {[%clk 0:02:58.3]} 14... Bc8 {[%clk 0:02:44.2]} 15. Bg5
{[%clk 0:02:48.7]} 15... b6 {[%clk 0:02:30.7]} 16. Nb3 {[%clk 0:02:24.6]} 16...
Bb7 {[%clk 0:02:12.3]} 17. Rac1 {[%clk 0:02:14.3]} 17... e6 {[%clk 0:02:01.9]}
18. Rxc6 {[%clk 0:02:13]} 18... exd5 {[%clk 0:01:56.2]} 19. Rc7 {[%clk
0:02:09.1]} 19... Ba6 {[%clk 0:01:55.7]} 20. Rd1 {[%clk 0:02:09.5]} 20... dxe4
{[%clk 0:01:50.7]} 21. Bxe4 {[%clk 0:02:02.4]} 21... Rac8 {[%clk 0:01:37.5]} 22.
Rxa7 {[%clk 0:01:57.5]} 22... Bc4 {[%clk 0:01:33.6]} 23. Nd4 {[%clk 0:01:12.5]}
23... f6 {[%clk 0:01:20.5]} 24. Be3 {[%clk 0:01:10.7]} 24... f5 {[%clk
0:01:11.1]} 25. Bf3 {[%clk 0:01:07.3]} 25... Rfd8 {[%clk 0:01:04.8]} 26. Nxf5
{[%clk 0:00:37.2]} 26... gxf5 {[%clk 0:00:50.4]} 27. Bxh5 {[%clk 0:00:36.4]}
27... Bxb2 {[%clk 0:00:43.6]} 28. Rxd8+ {[%clk 0:00:31.3]} 28... Rxd8 {[%clk
0:00:44.5]} 29. Bf3 {[%clk 0:00:30.6]} 29... Bd4 {[%clk 0:00:35.5]} 30. Bxd4
{[%clk 0:00:21.6]} 30... Rxd4 {[%clk 0:00:36.4]} 31. Rc7 {[%clk 0:00:20.4]}
31... Bxa2 {[%clk 0:00:30.3]} 32. Rb7 {[%clk 0:00:13.4]} 32... Rb4 {[%clk
0:00:26.6]} 33. h4 {[%clk 0:00:13.1]} 33... Bc4 {[%clk 0:00:23.3]} 34. h5 {[%clk
0:00:10.5]} 34... h6 {[%clk 0:00:23.7]} 35. Bc6 {[%clk 0:00:07.4]} 35... b5
{[%clk 0:00:19.4]} 36. Kh2 {[%clk 0:00:04.7]} 36... Kf8 {[%clk 0:00:18.1]} 37.
Bd7 {[%clk 0:00:04.4]} 37... Bd3 {[%clk 0:00:14.9]} 38. Be6 {[%clk 0:00:02.9]}
38... Be4 {[%clk 0:00:14]} 39. Rf7+ {[%clk 0:00:03.8]} 39... Ke8 {[%clk
0:00:14]} 40. Rh7 {[%clk 0:00:03.7]} 40... Rb1 {[%clk 0:00:13.7]} 41. g4 {[%clk
0:00:04.1]} 41... f4 {[%clk 0:00:13]} 42. f3 {[%clk 0:00:02.8]} 42... Bxf3
{[%clk 0:00:13.3]} 43. g5 {[%clk 0:00:01]} 43... Rh1# {[%clk 0:00:12.5]} 0-1

[Event "*** Titled Tuesday Blitz"]
[Site "Chess.com"]
[Date "2021.03.02"]
[Round "7"]
[White "stepakyedael"]
[Black "RamyresCoelho"]
[Result "1/2-1/2"]
[WhiteElo "2323"]
[BlackElo "2072"]
[TimeControl "180+1"]
[EndTime "11:19:08 PST"]
[Termination "Game drawn by repetition"]

1. d4 {[%clk 0:03:00.9]} 1... c5 {[%clk 0:02:58.7]} 2. d5 {[%clk 0:02:56.5]}
2... e6 {[%clk 0:02:56.9]} 3. c4 {[%clk 0:02:56.2]} 3... d6 {[%clk 0:02:57.1]}
4. Nc3 {[%clk 0:02:55.6]} 4... Nf6 {[%clk 0:02:56.8]} 5. e4 {[%clk 0:02:55.5]}
5... e5 {[%clk 0:02:55.7]} 6. Nge2 {[%clk 0:02:53.9]} 6... a6 {[%clk 0:02:54.2]}
7. a4 {[%clk 0:02:53.1]} 7... Be7 {[%clk 0:02:53.5]} 8. Ng3 {[%clk 0:02:52.3]}
8... O-O {[%clk 0:02:54.4]} 9. Bd3 {[%clk 0:02:51]} 9... Bg4 {[%clk 0:02:53.7]}
10. f3 {[%clk 0:02:45.3]} 10... Bc8 {[%clk 0:02:46.1]} 11. Be3 {[%clk
0:02:41.2]} 11... Ne8 {[%clk 0:02:45.2]} 12. Qd2 {[%clk 0:02:39.8]} 12... g6
{[%clk 0:02:29.9]} 13. O-O-O {[%clk 0:02:32.7]} 13... b5 {[%clk 0:02:27.4]} 14.
cxb5 {[%clk 0:02:30.8]} 14... axb5 {[%clk 0:02:28.3]} 15. Bxb5 {[%clk
0:02:29.8]} 15... f5 {[%clk 0:02:20.9]} 16. Bh6 {[%clk 0:02:11.7]} 16... Nc7
{[%clk 0:02:06.9]} 17. Bxf8 {[%clk 0:02:07.1]} 17... Bg5 {[%clk 0:02:06.7]} 18.
Bh6 {[%clk 0:01:57.3]} 18... Bxd2+ {[%clk 0:02:05.7]} 19. Bxd2 {[%clk
0:01:49.7]} 19... Nxb5 {[%clk 0:02:06]} 20. axb5 {[%clk 0:01:46.9]} 20... f4
{[%clk 0:02:06.3]} 21. Nge2 {[%clk 0:01:43.8]} 21... Nd7 {[%clk 0:01:49]} 22.
Kc2 {[%clk 0:01:40.9]} 22... Nb6 {[%clk 0:01:48.6]} 23. b3 {[%clk 0:01:36.8]}
23... Bd7 {[%clk 0:01:42.7]} 24. Ra1 {[%clk 0:01:33.7]} 24... Qe8 {[%clk
0:01:32.9]} 25. Ra6 {[%clk 0:01:25.4]} 25... Rb8 {[%clk 0:01:12.3]} 26. Rha1
{[%clk 0:01:11.9]} 26... Bxb5 {[%clk 0:01:09.2]} 27. Nxb5 {[%clk 0:01:11.8]}
27... Qxb5 {[%clk 0:01:10.1]} 28. Nc3 {[%clk 0:01:12]} 28... Qe8 {[%clk
0:00:59.1]} 29. R1a2 {[%clk 0:00:57.1]} 29... g5 {[%clk 0:00:55.3]} 30. h3
{[%clk 0:00:55.4]} 30... h5 {[%clk 0:00:53.6]} 31. R2a5 {[%clk 0:00:51.4]} 31...
Nc8 {[%clk 0:00:46.2]} 32. Ra8 {[%clk 0:00:45.1]} 32... Rxa8 {[%clk 0:00:45.3]}
33. Rxa8 {[%clk 0:00:45]} 33... Qd7 {[%clk 0:00:40.7]} 34. Na4 {[%clk
0:00:41.2]} 34... Kf7 {[%clk 0:00:34.5]} 35. Ra6 {[%clk 0:00:33.2]} 35... Ne7
{[%clk 0:00:28.7]} 36. Ba5 {[%clk 0:00:26.4]} 36... Qb5 {[%clk 0:00:26.1]} 37.
Ra7 {[%clk 0:00:24.8]} 37... Qe2+ {[%clk 0:00:25.8]} 38. Kc3 {[%clk 0:00:22]}
38... Qe3+ {[%clk 0:00:20.9]} 39. Kb2 {[%clk 0:00:21.3]} 39... Qe2+ {[%clk
0:00:19.9]} 40. Ka3 {[%clk 0:00:21.2]} 40... Qb5 {[%clk 0:00:09.3]} 41. Bd8
{[%clk 0:00:19]} 41... Qb4+ {[%clk 0:00:08.3]} 42. Ka2 {[%clk 0:00:19]} 42... c4
{[%clk 0:00:05.6]} 43. Rxe7+ {[%clk 0:00:17.6]} 43... Kg6 {[%clk 0:00:05.2]} 44.
Re6+ {[%clk 0:00:17.5]} 44... Kg7 {[%clk 0:00:05.1]} 45. Re7+ {[%clk 0:00:17.3]}
45... Kg6 {[%clk 0:00:05.2]} 46. Re6+ {[%clk 0:00:16.6]} 46... Kg7 {[%clk
0:00:05.5]} 47. Re7+ {[%clk 0:00:16.5]} 47... Kg6 {[%clk 0:00:05.9]} 1/2-1/2

[Event "*** Titled Tuesday Blitz"]
[Site "Chess.com"]
[Date "2021.03.02"]
[Round "7"]
[White "Artem_Koval"]
[Black "JiiHart"]
[Result "1-0"]
[WhiteElo "2225"]
[BlackElo "2081"]
[TimeControl "180+1"]
[EndTime "11:19:08 PST"]
[Termination "Artem_Koval won by resignation"]

1. d4 {[%clk 0:03:00.9]} 1... Nf6 {[%clk 0:02:59.2]} 2. Bf4 {[%clk 0:03:01]}
2... d5 {[%clk 0:02:58]} 3. e3 {[%clk 0:03:00.9]} 3... Bf5 {[%clk 0:02:57.6]} 4.
c4 {[%clk 0:03:00.3]} 4... e6 {[%clk 0:02:54.9]} 5. Nc3 {[%clk 0:03:00.3]} 5...
c6 {[%clk 0:02:52.4]} 6. Qb3 {[%clk 0:03:00.1]} 6... Qb6 {[%clk 0:02:41.8]} 7.
c5 {[%clk 0:03:00.1]} 7... Qxb3 {[%clk 0:02:32.7]} 8. axb3 {[%clk 0:03:01]} 8...
Nbd7 {[%clk 0:02:22.1]} 9. b4 {[%clk 0:02:58.8]} 9... Nh5 {[%clk 0:02:06.9]} 10.
Bg3 {[%clk 0:02:56.5]} 10... Nxg3 {[%clk 0:02:03.2]} 11. hxg3 {[%clk 0:02:57.4]}
11... Be7 {[%clk 0:02:00]} 12. b5 {[%clk 0:02:57.1]} 12... O-O {[%clk
0:01:57.2]} 13. b4 {[%clk 0:02:54]} 13... e5 {[%clk 0:01:46.9]} 14. Nf3 {[%clk
0:02:52.5]} 14... Bf6 {[%clk 0:01:39.4]} 15. Kd2 {[%clk 0:02:36]} 15... Rfe8
{[%clk 0:01:23.3]} 16. bxc6 {[%clk 0:02:13]} 16... bxc6 {[%clk 0:01:21.1]} 17.
b5 {[%clk 0:02:13.5]} 17... exd4 {[%clk 0:01:12.8]} 18. exd4 {[%clk 0:02:11.7]}
18... cxb5 {[%clk 0:00:55.9]} 19. Nxd5 {[%clk 0:02:03.1]} 19... Rec8 {[%clk
0:00:39.6]} 20. Bxb5 {[%clk 0:01:41.7]} 20... Bxd4 {[%clk 0:00:33.5]} 21. Nxd4
{[%clk 0:00:32]} 21... Rxc5 {[%clk 0:00:32.5]} 22. Ne7+ {[%clk 0:00:30.7]} 22...
Kf8 {[%clk 0:00:31.4]} 23. Nexf5 {[%clk 0:00:31.2]} 23... Nb6 {[%clk 0:00:21.1]}
24. Rac1 {[%clk 0:00:29.9]} 24... Rac8 {[%clk 0:00:18.6]} 25. Rxc5 {[%clk
0:00:29.2]} 25... Rxc5 {[%clk 0:00:19.5]} 26. Rc1 {[%clk 0:00:29.2]} 26... Rd5
{[%clk 0:00:18.9]} 27. Kd3 {[%clk 0:00:28.5]} 27... g6 {[%clk 0:00:19.2]} 28.
Ke4 {[%clk 0:00:28]} 28... gxf5+ {[%clk 0:00:17.9]} 29. Ke3 {[%clk 0:00:28.7]}
29... Kg8 {[%clk 0:00:16.6]} 30. Rc7 {[%clk 0:00:27.6]} 30... a5 {[%clk
0:00:14.9]} 31. Rb7 {[%clk 0:00:22.9]} 31... Rd6 {[%clk 0:00:13.6]} 32. Nxf5
{[%clk 0:00:20.7]} 32... Re6+ {[%clk 0:00:13.2]} 33. Kf3 {[%clk 0:00:21.1]}
33... a4 {[%clk 0:00:13.4]} 34. Ra7 {[%clk 0:00:20]} 34... h5 {[%clk 0:00:11.2]}
35. Bxa4 {[%clk 0:00:18.6]} 35... Rf6 {[%clk 0:00:10.7]} 36. Kf4 {[%clk
0:00:17.5]} 36... Kh7 {[%clk 0:00:10.1]} 37. Kg5 {[%clk 0:00:17.5]} 37... Rg6+
{[%clk 0:00:09.4]} 38. Kxh5 {[%clk 0:00:16]} 38... Nc4 {[%clk 0:00:08.8]} 39.
Rxf7+ {[%clk 0:00:14.9]} 39... Kg8 {[%clk 0:00:08.2]} 40. Rc7 {[%clk 0:00:15.2]}
40... Ra6 {[%clk 0:00:06.1]} 41. Bb3 {[%clk 0:00:15.3]} 41... Kf8 {[%clk
0:00:02.7]} 42. Bxc4 {[%clk 0:00:15.7]} 42... Ra5 {[%clk 0:00:03.2]} 43. Kg5
{[%clk 0:00:15.9]} 43... Re5 {[%clk 0:00:02.6]} 44. Rf7+ {[%clk 0:00:16.1]}
44... Ke8 {[%clk 0:00:02.5]} 45. Kf6 {[%clk 0:00:16.7]} 45... Kd8 {[%clk
0:00:02.7]} 46. Kxe5 {[%clk 0:00:16.4]} 46... Kc8 {[%clk 0:00:03.6]} 47. Kd6
{[%clk 0:00:16.8]} 47... Kb8 {[%clk 0:00:04.1]} 48. Kc6 {[%clk 0:00:16.7]} 1-0